fUSD/lending_fUSD_20250505
["ID","MTS","AMOUNT","RATE_DAILY","PERIOD"]
[359903475,1746409838114,-450.0,0.00019895,2]
[359903476,1746409838123,-450.0,0.00019895,2]
[359903477,1746409838133,-191.865655,0.00019895,2]
[359903478,1746409838142,-485.36240897,0.00019895,2]
[359903479,1746409838151,-215.19603819,0.00019895,2]
[359903480,1746409838160,-482.07062258,0.00019895,2]
[359903481,1746409838169,-483.86241282,0.00019895,2]
[359903482,1746409838179,-482.57449205,0.00019895,2]
[359903483,1746409838188,-496.5665077,0.00019895,2]
[359903484,1746409838198,-495.10558741,0.00019895,2]
[359903485,1746409838207,-482.44849799,0.00019895,2]
[359903486,1746409838216,-495.16155303,0.00019895,2]
[359903487,1746409838225,-480.85144103,0.00019895,2]
[359903488,1746409838234,-334.00543983,0.00019895,2]
[359903489,1746409838244,-503.63073971,0.00019895,2]
[359903490,1746409838252,-480.68818468,0.00019895,2]
[359903491,1746409838262,-498.36254138,0.00019895,2]
[359903492,1746409838271,-492.37895659,0.00019895,2]
[359903493,1746409838282,-477.17359595,0.00019895,2]
[359903495,1746409838292,-507.58662598,0.00019895,2]
[359903497,1746409838302,-485.77547941,0.00019895,2]
[359903499,1746409838311,-492.7914018,0.00019895,2]
[359903501,1746409838320,-495.11750348,0.00019895,2]
[359903503,1746409838330,-502.22814111,0.00019895,2]
[359903505,1746409838339,-484.18954931,0.00019895,2]
[359903507,1746409838348,-480.74522252,0.00019895,2]
[359903509,1746409838357,-508.41021129,0.00019895,2]
[359903511,1746409838367,-474.07300113,0.00019895,2]
[359903513,1746409838375,-483.8906761,0.00019895,2]
[359903515,1746409838384,-513.02958155,0.00019895,2]
[359903517,1746409838393,-409.66319204,0.00019895,2]
[359903520,1746409838403,-492.11657584,0.00019895,2]
[359903522,1746409838411,-482.31078001,0.00019895,2]
[359903525,1746409838421,-487.77783203,0.00019895,2]
[359903528,1746409838430,-496.0753095,0.00019895,2]
[359903530,1746409838439,-482.13330191,0.00019895,2]
[359903533,1746409838448,-501.69717227,0.00019895,2]
[359903536,1746409838463,-476.60555273,0.00019895,2]
[359903538,1746409838472,-474.9503795,0.00019895,2]
[359903541,1746409838481,-481.84687173,0.00019895,2]
[359903543,1746409838491,-492.43678907,0.00019895,2]
[359903546,1746409838501,-492.90993289,0.00019895,2]
[359903549,1746409838510,-500.10688794,0.00019895,2]
[359903551,1746409838519,-489.5547293,0.00019895,2]
[359903553,1746409838531,-486.68851514,0.00019895,2]
[359903555,1746409838540,-487.10730317,0.00019895,2]
[359903557,1746409838549,-486.14174951,0.00019895,2]
[359903559,1746409838558,-490.39920363,0.00019895,2]
[359903561,1746409838567,-473.89656231,0.00019895,2]
[359903563,1746409838576,-476.9847566,0.00019895,2]
[359903565,1746409838585,-485.59287164,0.00019895,2]
[359903567,1746409838594,-484.93719049,0.00019895,2]
[359903569,1746409838603,-492.58696448,0.00019895,2]
[359903571,1746409838613,-450.0,0.00019895,2]
[359903573,1746409838622,-328.26759888,0.00019895,2]
[359903575,1746409838630,-481.78258865,0.00019895,2]
[359903577,1746409838639,-527.51569884,0.00019895,2]
[359903579,1746409838649,-450.0,0.00019895,2]
[359903581,1746409838658,-167.37368573,0.00019895,2]
[359903583,1746409838666,-479.24176691,0.00019895,2]
[359903585,1746409838675,-484.6040806,0.00019895,2]
[359903587,1746409838684,-474.73576042,0.00019895,2]
[359903589,1746409838693,-487.8080004,0.00019895,2]
[359903591,1746409838702,-526.99686844,0.00019895,2]
[359903593,1746409838711,-450.0,0.00019895,2]
[359903595,1746409838720,-450.0,0.00019895,2]
[359903597,1746409838729,-450.0,0.00019895,2]
[359903599,1746409838739,-481.5584912,0.00019895,2]
[359903601,1746409838748,-510.91135663,0.00019895,2]
[359903603,1746409838757,-470.0,0.00019895,2]
[359903605,1746409838766,-450.0,0.00019895,2]
[359903607,1746409838777,-226.33877369,0.00019895,2]
[359903609,1746409838786,-546.47562175,0.00019895,2]
[359903611,1746409838795,-473.14948402,0.00019895,2]
[359903613,1746409838804,-515.17995712,0.00019895,2]
[359903615,1746409838814,-507.8427218,0.00019895,2]
[359903617,1746409838823,-470.0,0.00019895,2]
[359903619,1746409838832,-507.80649319,0.00019895,2]
[359903621,1746409838841,-500.0,0.00019895,2]
[359903623,1746409838849,-216.97980485,0.00019895,2]
[359903625,1746409838858,-450.0,0.00019895,2]
[359903627,1746409838867,-450.0,0.00019895,2]
[359903629,1746409838877,-450.0,0.00019895,2]
[359903630,1746409838886,-450.0,0.00019895,2]
[359903632,1746409838895,-304.25294469,0.00019895,2]
[359903634,1746409838905,-547.75079722,0.00019895,2]
[359903636,1746409838914,-489.35530825,0.00019895,2]
[359903638,1746409838924,-525.17719119,0.00019895,2]
[359903640,1746409838933,-450.0,0.00019895,2]
[359903642,1746409838942,-405.84041656,0.00019895,2]
[359903644,1746409838952,-450.0,0.00019895,2]
[359903646,1746409838961,-255.49301602,0.00019895,2]
[359903648,1746409838971,-489.88493577,0.00019895,2]
[359903650,1746409838980,-586.36402286,0.00019895,2]
[359903652,1746409838989,-450.0,0.00019895,2]
[359903654,1746409838998,-450.0,0.00019895,2]
[359903656,1746409839008,-450.0,0.00019895,2]
[359903658,1746409839017,-504.64995298,0.00019895,2]
[359903660,1746409839027,-474.6398567,0.00019895,2]
[359903662,1746409839036,-450.0,0.00019895,2]
[359903664,1746409839045,-450.0,0.00019895,2]
[359903666,1746409839054,-401.60663271,0.00019895,2]
[359903668,1746409839063,-450.0,0.00019895,2]
[359903670,1746409839073,-450.0,0.00019895,2]
[359903672,1746409839082,-450.0,0.00019895,2]
[359903674,1746409839091,-425.79717243,0.00019895,2]
[359903676,1746409839100,-450.0,0.00019895,2]
[359903678,1746409839109,-544.54532645,0.00019895,2]
[359903680,1746409839118,-450.0,0.00019895,2]
[359903682,1746409839127,-450.0,0.00019895,2]
[359903684,1746409839136,-557.24807275,0.00019895,2]
[359903686,1746409839145,-485.34772848,0.00019895,2]
[359903688,1746409839153,-405.54717752,0.00019895,2]
[359903690,1746409839163,-481.5763931,0.00019895,2]
[359903692,1746409839172,-512.50771174,0.00019897,2]
[359903694,1746409839181,-500.0,0.00019897,2]
[359903696,1746409839190,-581.84507881,0.00019897,2]
[359903698,1746409839199,-245.46500999,0.00019897,2]
[359903700,1746409839208,-336.19804015,0.00019897,2]
[359903702,1746409839217,-450.0,0.00019897,2]
[359903704,1746409839226,-188.76577971,0.00019897,2]
[359903706,1746409839236,-450.0,0.00019897,2]
[359903707,1746409839245,-193.06673741,0.00019897,2]
[359903709,1746409839254,-1208.92,0.00019897,2]
[359903712,1746409839265,-176.09653947,0.00019897,2]
[359903713,1746409839274,-195.89160575,0.00019897,2]
[359903715,1746409839284,-165.23679487,0.00019897,2]
[359903717,1746409839293,-450.0,0.00019897,2]
[359903719,1746409839303,-543.72539993,0.00019897,2]
[359903721,1746409839312,-504.68352639,0.00019897,2]
[359903724,1746409839322,-18902.71,0.00019897,2]
[359903725,1746409839331,-209.11746536,0.00019897,2]
[359903727,1746409839340,-156.41840797,0.00019897,2]
[359903729,1746409839349,-720.85,0.00019897,2]
[359903732,1746409839359,-161.0756048,0.00019897,2]
[359903734,1746409839368,-188.04869231,0.00019897,2]
[359903735,1746409839377,-331.91987565,0.00019897,2]
[359903737,1746409839386,-512.7,0.00019897,2]
[359903739,1746409839395,-450.0,0.00019897,2]
[359903741,1746409839405,-557.57016414,0.00019897,2]
[359903743,1746409839414,-450.0,0.00019897,2]
[359903745,1746409839423,-503.57248523,0.00019897,2]
[359903748,1746409839432,-155.50253223,0.00019897,2]
[359903751,1746409839441,-450.0,0.00019897,2]
[359903753,1746409839450,-450.0,0.00019897,2]
[359903755,1746409839459,-814.92,0.00019897,2]
[359903757,1746409839472,-572.22,0.00019897,2]
[359903761,1746409839481,-458.4,0.00019897,2]
[359903762,1746409839491,-450.0,0.00019897,2]
[359903765,1746409839501,-450.0,0.00019897,2]
[359903767,1746409839510,-450.0,0.00019897,2]
[359903769,1746409839519,-562.63,0.00019897,2]
[359903771,1746409839529,-450.0,0.00019897,2]
[359903774,1746409839538,-470.0,0.00019897,2]
[359903776,1746409839548,-284.949037,0.00019897,2]
[359903778,1746409839559,-167.04028588,0.00019897,2]
[359903780,1746409839568,-450.0,0.00019897,2]
[359903782,1746409839577,-191.75378482,0.00019897,2]
[359903784,1746409839587,-437.58113259,0.00019897,2]
[359903786,1746409839596,-450.0,0.00019897,2]
[359903788,1746409839605,-926.58,0.00019897,2]
[359903790,1746409839615,-252.65545787,0.00019897,2]
[359903792,1746409839624,-512.50771165,0.00019897,2]
[359903794,1746409839633,-512.50771165,0.00019898,2]
[359903797,1746409839643,-500.0,0.00019898,2]
[359903799,1746409839653,-500.0,0.00019898,2]
[359903801,1746409839662,-500.0,0.00019898,2]
[359903803,1746409839671,-500.0,0.00019898,2]
[359903805,1746409839680,-500.0,0.00019898,2]
[359903807,1746409839690,-500.0,0.00019898,2]
[359903809,1746409839699,-500.0,0.00019898,2]
[359903811,1746409839708,-500.0,0.00019898,2]
[359903813,1746409839717,-500.0,0.00019898,2]
[359903815,1746409839727,-500.0,0.00019898,2]
[359903817,1746409839737,-500.0,0.00019898,2]
[359903819,1746409839746,-500.0,0.00019898,2]
[359903821,1746409839755,-500.0,0.00019898,2]
[359903823,1746409839765,-500.0,0.00019898,2]
[359903825,1746409839774,-500.0,0.00019898,2]
[359903827,1746409839785,-500.0,0.00019898,2]
[359903829,1746409839795,-500.0,0.00019898,2]
[359903830,1746409839805,-450.0,0.00019898,2]
[359903833,1746409839814,-288.82875552,0.00019898,2]
[359903835,1746409839824,-512.50771165,0.00019898,2]
[359903837,1746409839832,-552.91816867,0.00019898,2]
[359903839,1746409839842,-525.83621482,0.00019898,2]
[359903841,1746409839851,-516.06168231,0.00019898,2]
[359903843,1746409839861,-509.8973588,0.00019898,2]
[359903845,1746409839871,-474.86837361,0.00019898,2]
[359903847,1746409839880,-450.0,0.00019898,2]
[359903849,1746409839889,-266.02843091,0.00019898,2]
[359903851,1746409839898,-450.0,0.00019898,2]
[359903853,1746409839908,-450.0,0.00019898,2]
[359903855,1746409839917,-450.0,0.00019898,2]
[359903856,1746409839926,-450.0,0.00019898,2]
[359903858,1746409839935,-458.37105859,0.00019898,2]
[359903860,1746409839945,-450.0,0.00019898,2]
[359903862,1746409839954,-190.47240735,0.00019898,2]
[359903864,1746409839963,-521.5817825,0.00019898,2]
[359903866,1746409839972,-169.10003407,0.00019898,2]
[359903868,1746409839981,-450.0,0.00019898,2]
[359903870,1746409839990,-450.0,0.00019898,2]
[359903872,1746409839999,-462.25481844,0.00019898,2]
[359903874,1746409840008,-450.0,0.00019898,2]
[359903876,1746409840018,-450.0,0.00019898,2]
[359903879,1746409840029,-578.18246188,0.00019898,2]
[359903881,1746409840039,-526.49744385,0.00019898,2]
[359903883,1746409840049,-179.45290263,0.00019898,2]
[359903903,1746409840234,-450.0,0.00019898,2]
[359903905,1746409840246,-450.0,0.00019898,2]
[359903907,1746409840255,-450.0,0.00019898,2]
[359903909,1746409840265,-450.0,0.00019898,2]
[359903911,1746409840274,-570.07436716,0.00019898,2]
[359903913,1746409840285,-256.27424237,0.00019898,2]
[359903915,1746409840295,-450.0,0.00019898,2]
[359903917,1746409840304,-450.0,0.00019898,2]
[359903920,1746409840314,-470.50164605,0.00019898,2]
[359903921,1746409840323,-483.6348768,0.00019898,2]
[359903923,1746409840333,-552.99162691,0.00019898,2]
[359903925,1746409840342,-450.0,0.00019898,2]
[359903927,1746409840351,-450.0,0.00019898,2]
[359903929,1746409840361,-450.0,0.00019898,2]
[359903931,1746409840370,-571.86894718,0.00019898,2]
[359903933,1746409840379,-513.04795665,0.00019898,2]
[359903935,1746409840388,-450.0,0.00019898,2]
[359903937,1746409840398,-450.0,0.00019898,2]
[359903939,1746409840407,-450.0,0.00019898,2]
[359903941,1746409840417,-450.0,0.00019898,2]
[359903943,1746409840426,-450.0,0.00019898,2]
[359903945,1746409840436,-167.85764288,0.00019898,2]
[359903947,1746409840446,-450.0,0.00019898,2]
[359903949,1746409840457,-500.0,0.00019898,2]
[359903951,1746409840470,-164.40799904,0.00019898,2]
[359903953,1746409840480,-158.15155069,0.00019898,2]
[359903955,1746409840489,-365.61026314,0.00019898,2]
[359903958,1746409840501,-491.30274108,0.00019898,2]
[359903960,1746409840510,-656.404264,0.00019898,2]
[359903961,1746409840519,-579.62270293,0.00019898,2]
[359903963,1746409840529,-181.18797632,0.00019898,2]
[359903966,1746409840539,-496.51088963,0.00019898,2]
[359903968,1746409840549,-483.83339532,0.00019898,2]
[359903970,1746409840559,-1460.65,0.00019898,2]
[359903972,1746409840568,-173.79344032,0.00019898,2]
[359903974,1746409840577,-470.0,0.00019898,2]
[359903976,1746409840586,-172.008668,0.00019898,2]
[359903978,1746409840596,-487.18719285,0.00019898,2]
[359903980,1746409840605,-155.2770562,0.00019898,2]
[359903982,1746409840615,-479.28128772,0.00019898,2]
[359903984,1746409840625,-263.25225611,0.00019898,2]
[359903986,1746409840634,-466.34882532,0.00019898,2]
[359903988,1746409840643,-157.869387,0.00019898,2]
[359903990,1746409840653,-450.0,0.00019898,2]
[359903992,1746409840662,-450.0,0.00019898,2]
[359903994,1746409840672,-480.57109378,0.00019898,2]
[359903996,1746409840681,-450.0,0.00019898,2]
[359903998,1746409840690,-454.79547522,0.00019898,2]
[359904000,1746409840699,-450.0,0.00019898,2]
[359904001,1746409840708,-524.01723252,0.00019898,2]
[359904004,1746409840717,-543.9859123,0.00019898,2]
[359904006,1746409840726,-484.79216001,0.00019898,2]
[359904008,1746409840736,-485.52480342,0.00019898,2]
[359904010,1746409840745,-485.320474,0.00019898,2]
[359904011,1746409840753,-409.24173095,0.00019898,2]
[359904013,1746409840762,-481.93068604,0.00019898,2]
[359904014,1746409840771,-487.48608777,0.00019898,2]
[359904015,1746409840781,-566.11823497,0.00019898,2]
[359904016,1746409840790,-486.06564111,0.00019898,2]
[359904017,1746409840800,-331.33524493,0.00019898,2]
[359904018,1746409840810,-450.0,0.00019898,2]
[359904019,1746409840820,-512.50771165,0.00019898,2]
[359904020,1746409840830,-512.50771165,0.00019899,2]
[359904021,1746409840840,-450.0,0.00019899,2]
[359904022,1746409840850,-450.0,0.00019899,2]
[359904023,1746409840861,-450.0,0.00019899,2]
[359904024,1746409840871,-450.0,0.00019899,2]
[359904025,1746409840880,-512.50771165,0.00019899,2]
[359904027,1746409840890,-512.50771165,0.00019899,2]
[359904029,1746409840900,-512.50771165,0.000199,2]
[359904031,1746409840909,-328.44568313,0.000199,2]
[359904033,1746409840918,-512.50771165,0.000199,2]
[359904035,1746409840928,-5077.6465082,0.000199,2]
[359904037,1746409840937,-494.35604244,0.000199,2]
[359904043,1746409840985,-736.92500302,0.000199,2]
[359904045,1746409840995,-1287.811,0.00019955,2]
[359904047,1746409841005,-174.0,0.00019973,2]
[359904049,1746409841015,-500.0,0.00019973,2]
[359904051,1746409841024,-500.0,0.00019973,2]
[359904052,1746409841042,-500.88051246,0.00019973,2]
[359904055,1746409841053,-500.0,0.00019973,2]
[359904056,1746409841063,-293.49893127,0.00019973,2]
[359904058,1746409841073,-151.18982542,0.00019973,2]
[359904060,1746409841083,-500.0,0.00019973,2]
[359904062,1746409841093,-500.0,0.00019973,2]
[359904063,1746409841102,-155.1248714,0.00019984,2]
[359904065,1746409841111,-270.77,0.00019985,2]
[359904067,1746409841121,-355.73565268,0.00019985,2]
[359904069,1746409841130,-450.0,0.00019985,2]
[359904071,1746409841139,-450.0,0.00019985,2]
[359904073,1746409841149,-450.0,0.00019985,2]
[359904074,1746409841158,-698.84621323,0.00019985,2]
[359904076,1746409841168,-1300.0,0.00019986,2]
[359904078,1746409841178,-926.0,0.00019986,2]
[359904080,1746409841187,-797.0,0.00019986,2]
[359904082,1746409841196,-587.411,0.00019986,2]
[359904084,1746409841206,-555.715,0.00019986,2]
[359904086,1746409841215,-951.03902379,0.00019986,2]
[359904094,1746409841288,-512.34497621,0.00019986,2]
[359904096,1746409841297,-924.133,0.00019986,2]
[359904098,1746409841306,-154.25,0.00019987,2]
[359904100,1746409841316,-150.6895285,0.00019994,2]
[359904101,1746409841325,-246.52415896,0.00019994,2]
[359904105,1746409841348,-267.97881208,0.00019994,2]
[359904107,1746409841357,-179.22757745,0.00019994,2]
[359904109,1746409841367,-19.2488714,0.00019994,2]
[359904111,1746409841378,-430.7511286,0.00019994,2]
[359904113,1746409841387,-506.51280753,0.00019994,2]
[359904115,1746409841399,-0.44128203,0.00019994,2]
[359904117,1746409841408,-431.02676202,0.00019994,2]
[359904119,1746409841420,-105.75323798,0.00019994,2]
[359904121,1746409841430,-371.55442803,0.00019994,2]
[359904123,1746409841439,-138.30163785,0.00019994,2]
[359904125,1746409841455,-311.69836215,0.00019994,2]
[359904127,1746409841466,-563.47,0.00019994,2]
[359904129,1746409841477,-450.0,0.00019994,2]
[359904131,1746409841486,-509.72143033,0.00019994,2]
[359904133,1746409841495,-560.72130626,0.00019994,2]
[359904135,1746409841506,-450.0,0.00019994,2]
[359904137,1746409841515,-450.0,0.00019994,2]
[359904139,1746409841525,-509.31853303,0.00019995,2]
[359904141,1746409841534,-243.2466659,0.00019997,2]
[359904143,1746409841545,-151.0,0.00019997,2]
[359904145,1746409841554,-450.0,0.00019997,2]
[359904147,1746409841563,-526.84512068,0.00019997,2]
[359904149,1746409841572,-450.0,0.00019997,2]
[359904151,1746409841581,-301.67385159,0.00019997,2]
[359904153,1746409841590,-486.45187783,0.00019997,2]
[359904155,1746409841600,-450.0,0.00019997,2]
[359904157,1746409841610,-450.0,0.00019997,2]
[359904158,1746409841619,-450.0,0.00019997,2]
[359904160,1746409841628,-492.36547459,0.00019997,2]
[359904163,1746409841638,-508.6773564,0.00019997,2]
[359904165,1746409841648,-450.0,0.00019997,2]
[359904167,1746409841657,-450.0,0.00019997,2]
[359904168,1746409841666,-330.15803591,0.00019997,2]
[359904171,1746409841678,-119.84196409,0.00019997,2]
[359904173,1746409841687,-138.46963271,0.00019997,2]
[359904175,1746409841699,-359.19493949,0.00019997,2]
[359904177,1746409841709,-326.01194496,0.00019997,2]
[359904481,1746409843726,-98.23785416,0.00019898,2]
[359904485,1746409843753,-401.76214584,0.00019898,2]
[359904487,1746409843763,-525.23414101,0.00019994,2]
[359904489,1746409843772,-123.98805504,0.00019997,2]
[359904491,1746409843783,-450.0,0.00019997,2]
[359904493,1746409843792,-450.0,0.00019997,2]
[359904495,1746409843801,-280.12316298,0.00019997,2]
[359904497,1746409843811,-450.0,0.00019997,2]
[359904499,1746409843821,-430.22141525,0.00019997,2]
[359904501,1746409843833,-19.77858475,0.00019997,2]
[359904503,1746409843842,-450.0,0.00019997,2]
[359904505,1746409843851,-450.0,0.00019997,2]
[359904507,1746409843860,-450.0,0.00019997,2]
[359904509,1746409843869,-450.0,0.00019997,2]
[359904511,1746409843879,-450.0,0.00019997,2]
[359904528,1746409844022,-494.11901067,0.00019997,2]
[359904530,1746409844034,-450.0,0.00019997,2]
[359904532,1746409844043,-450.0,0.00019997,2]
[359904534,1746409844052,-450.0,0.00019997,2]
[359904536,1746409844062,-450.0,0.00019997,2]
[359904538,1746409844071,-491.6773571,0.00019997,2]
[359904540,1746409844081,-450.0,0.00019997,2]
[359904542,1746409844090,-450.0,0.00019997,2]
[359904545,1746409844100,-491.04010814,0.00019997,2]
[359904547,1746409844110,-485.18466626,0.00019997,2]
[359904549,1746409844119,-450.0,0.00019997,2]
[359904550,1746409844129,-450.0,0.00019997,2]
[359904553,1746409844138,-496.22954413,0.00019997,2]
[359904555,1746409844148,-501.79820039,0.00019997,2]
[359904557,1746409844158,-450.0,0.00019997,2]
[359904558,1746409844167,-450.0,0.00019997,2]
[359904561,1746409844176,-488.35331425,0.00019997,2]
[359904563,1746409844186,-539.00617681,0.00019997,2]
[359904565,1746409844195,-506.38541575,0.00019997,2]
[359904567,1746409844205,-450.0,0.00019997,2]
[359904569,1746409844214,-450.0,0.00019997,2]
[359904571,1746409844224,-450.0,0.00019997,2]
[359904572,1746409844234,-450.0,0.00019997,2]
[359904574,1746409844243,-500.46615841,0.00019997,2]
[359904576,1746409844252,-470.0,0.00019997,2]
[359904578,1746409844261,-495.7682231,0.00019997,2]
[359904580,1746409844271,-450.0,0.00019997,2]
[359904582,1746409844281,-450.0,0.00019997,2]
[359904585,1746409844294,-502.95980783,0.00019997,2]
[359904586,1746409844303,-500.20323204,0.00019997,2]
[359904588,1746409844312,-450.0,0.00019997,2]
[359904590,1746409844322,-502.61892108,0.00019997,2]
[359904592,1746409844331,-450.0,0.00019997,2]
[359904595,1746409844341,-470.0,0.00019997,2]
[359904597,1746409844350,-480.95080705,0.00019997,2]
[359904599,1746409844359,-450.0,0.00019997,2]
[359904600,1746409844369,-450.0,0.00019997,2]
[359904602,1746409844378,-502.0637796,0.00019997,2]
[359904604,1746409844387,-450.0,0.00019997,2]
[359904606,1746409844396,-450.0,0.00019997,2]
[359904608,1746409844406,-503.33704885,0.00019997,2]
[359904610,1746409844415,-503.66766536,0.00019997,2]
[359904612,1746409844425,-450.0,0.00019997,2]
[359904614,1746409844435,-450.0,0.00019997,2]
[359904616,1746409844445,-500.0,0.00019997,2]
[359904618,1746409844455,-536.33731416,0.00019997,2]
[359904620,1746409844468,-450.0,0.00019997,2]
[359904622,1746409844477,-450.0,0.00019997,2]
[359904624,1746409844487,-452.28043476,0.00019997,2]
[359904626,1746409844496,-476.77515707,0.00019997,2]
[359904628,1746409844506,-369.41479186,0.00019997,2]
[359904630,1746409844517,-521.51534782,0.00019997,2]
[359904632,1746409844527,-505.37978881,0.00019997,2]
[359904634,1746409844537,-471.31056098,0.00019997,2]
[359904636,1746409844547,-494.36258869,0.00019997,2]
[359904638,1746409844557,-305.31627078,0.00019997,2]
[359904640,1746409844566,-492.50295045,0.00019997,2]
[359904642,1746409844575,-470.9435108,0.00019997,2]
[359904644,1746409844584,-488.13485691,0.00019997,2]
[359904646,1746409844594,-505.80963242,0.00019997,2]
[359904648,1746409844604,-483.14137774,0.00019997,2]
[359904650,1746409844614,-507.52800202,0.00019997,2]
[359904652,1746409844623,-450.0,0.00019997,2]
[359904654,1746409844633,-500.0,0.00019997,2]
[359904656,1746409844642,-450.0,0.00019997,2]
[359904657,1746409844651,-450.0,0.00019997,2]
[359904659,1746409844661,-504.62028438,0.00019997,2]
[359904661,1746409844670,-501.28146322,0.00019997,2]
[359904663,1746409844680,-450.0,0.00019997,2]
[359904666,1746409844690,-450.0,0.00019997,2]
[359904668,1746409844700,-479.34537272,0.00019997,2]
[359904670,1746409844710,-506.3570766,0.00019997,2]
[359904672,1746409844720,-535.02095115,0.00019997,2]
[359904674,1746409844730,-486.88070134,0.00019997,2]
[359904675,1746409844739,-248.23463983,0.00019997,2]
[359904677,1746409844749,-450.0,0.00019997,2]
[359904679,1746409844758,-450.0,0.00019997,2]
[359904681,1746409844767,-450.0,0.00019997,2]
[359904683,1746409844777,-1120.73,0.00019997,2]
[359904686,1746409844787,-450.0,0.00019997,2]
[359904687,1746409844797,-450.0,0.00019997,2]
[359904689,1746409844807,-477.85323482,0.00019997,2]
[359904691,1746409844817,-450.0,0.00019997,2]
[359904693,1746409844826,-513.04694383,0.00019997,2]
[359904695,1746409844835,-450.0,0.00019997,2]
[359904697,1746409844845,-496.98107033,0.00019997,2]
[359904699,1746409844855,-484.51286897,0.00019997,2]
[359904701,1746409844864,-508.35976619,0.00019997,2]
[359904703,1746409844873,-523.10560864,0.00019997,2]
[359904705,1746409844882,-518.93,0.00019997,2]
[359904707,1746409844891,-509.95135397,0.00019997,2]
[359904709,1746409844900,-525.1963878,0.00019997,2]
[359904711,1746409844909,-495.17821734,0.00019997,2]
[359904713,1746409844919,-517.16417187,0.00019997,2]
[359904715,1746409844928,-555.33977631,0.00019997,2]
[359904717,1746409844938,-513.86417731,0.00019997,2]
[359904718,1746409844947,-525.74145889,0.00019997,2]
[359904720,1746409844957,-530.46212633,0.00019997,2]
[359904722,1746409844966,-541.84744274,0.00019997,2]
[359904724,1746409844975,-515.1916466,0.00019997,2]
[359904726,1746409844985,-492.65599834,0.00019997,2]
[359904728,1746409844995,-501.9412576,0.00019997,2]
[359904730,1746409845005,-473.85080759,0.00019997,2]
[359904732,1746409845015,-478.15013982,0.00019997,2]
[359904734,1746409845025,-491.13159752,0.00019997,2]
[359904736,1746409845035,-491.10389258,0.00019997,2]
[359904738,1746409845047,-450.0,0.00019997,2]
[359904740,1746409845056,-580.2813276,0.00019997,2]
[359904742,1746409845067,-510.30029175,0.00019997,2]
[359904744,1746409845077,-544.27188972,0.00019997,2]
[359904746,1746409845086,-493.21753818,0.00019997,2]
[359904748,1746409845096,-470.0,0.00019997,2]
[359904750,1746409845106,-541.62284377,0.00019997,2]
[359904752,1746409845115,-450.0,0.00019997,2]
[359904754,1746409845124,-495.9243032,0.00019997,2]
[359904756,1746409845134,-517.77150859,0.00019997,2]
[359904758,1746409845144,-506.55874269,0.00019998,2]
[359904760,1746409845153,-492.15911065,0.00019998,2]
[359904762,1746409845163,-511.28318138,0.00019998,2]
[359904764,1746409845173,-489.9286073,0.00019998,2]
[359904766,1746409845183,-519.762229,0.00019998,2]
[359904768,1746409845192,-450.0,0.00019998,2]
[359904770,1746409845201,-526.17889421,0.00019998,2]
[359904772,1746409845210,-579.60218846,0.00019998,2]
[359904774,1746409845220,-349.24852333,0.00019998,2]
[359904775,1746409845229,-450.0,0.00019998,2]
[359904777,1746409845239,-450.0,0.00019998,2]
[359904779,1746409845248,-450.0,0.00019998,2]
[359904781,1746409845257,-273.22147434,0.00019998,2]
[359904783,1746409845267,-450.0,0.00019998,2]
[359904785,1746409845276,-450.0,0.00019998,2]
[359904787,1746409845287,-450.0,0.00019998,2]
[359904788,1746409845296,-88.26326856,0.00019998,2]
[359904789,1746409845310,-404.82583338,0.00019998,2]
[359904790,1746409845320,-224.15788662,0.00019998,2]
[359904791,1746409845343,-333.00871847,0.00019998,2]
[359904792,1746409845353,-450.0,0.00019998,2]